[Event "Superbet Blitz Poland 2022"]
[Site "Warsaw"]
[Date "2022.05.22"]
[Round "1.1"]
[White "Gavrilescu, David"]
[Black "Aronian, Levon"]
[Result "0-1"]
[ECO "B51"]
[WhiteElo "2518"]
[BlackElo "2765"]
[Annotator "TA"]
[PlyCount "100"]
[EventDate "2022.05.22"]
[EventType "tourn"]
[EventCountry "POL"]
[SourceTitle "playchess.com"]
[Source "ChessBase"]
[SourceQuality "1"]
[TimeControl "300+2"]

{[%evp 9,100,11,14,0,0,0,9,2,10,0,0,-3,46,41,27,53,39,43,35,44,62,0,0,-1,34,-19,0,-95,-80,-82,-52,-56,-41,-26,-34,-32,-8,-8,-5,-8,-8,-8,-8,-12,-8,-16,-12,-50,-8,-8,-8,-8,-8,-8,-8,-8,-8,-8,-8,-9,-8,-8,-8,-295,-266,-205,-205,-380,-332,-416,-416,-504,-456,-414,-414,-408,-62,-116,-116,-195,-8,-67,-80,-12809,-6138,-29980,-29981,-29981,-29982,-29983,-29983,-29983,-29981]} 1. e4 {[%emt 0:00:02]} c5 {[%emt 0:00:01]} 2. Nf3 {[%emt 0:00:02]} d6 {[%emt 0:00:01]} 3. Bb5+ {[%emt 0:00:02]} Nd7 {[%emt 0:00:02]} 4. d4 {[%emt 0:00:02]} cxd4 {[%emt 0:00:03]} 5. Qxd4 {[%emt 0:00:02]} a6 {[%emt 0:00:01]} 6. Be2 {[%emt 0:00:02] B51: Sicilian: Moscow Variation (3 Bb5+) without 3...Bd7.} Ngf6 {[%emt 0:00:06]} 7. O-O {[%emt 0:00:03]} g6 {[%emt 0:00:09]} (7... e5 $5 {[%cal Re5d4]} 8. Qe3 Be7 $11) 8. Nc3 {[%emt 0:00:02] The position is equal.} Bg7 {[%emt 0:00:02][%cal Bf8g7,Bg7d4,Bd4f2,Bf2h4,Bh4f6][%mdl 32]} 9. Rd1 {[%emt 0:00:02]} O-O {[%emt 0:00:08]} 10. e5 {[%emt 0:00:01]} Nxe5 $5 {[%emt 0:00:49][%mdl 4] 10...dxe5 gains popularity. Exploring less charted territory.} (10... Nh5 $11 {feels stronger.}) 11. Nxe5 $14 {[%emt 0:00:04][%mdl 64] And now Qb4 would win. Pin} Nd7 {[%emt 0:00:02][%mdl 64] [#] Pin} 12. Nxf7 {[%emt 0:00:11]} Bxd4 {[%emt 0:00:02]} (12... Rxf7 13. Qe3) 13. Nxd8 {[%emt 0:00:03] Pair of Knights!} Bxf2+ {[%emt 0:00:01]} 14. Kh1 {[%emt 0:00:15]} Rxd8 {[%emt 0:00:04]} 15. Nd5 {[%emt 0:01:21]} (15. Bg5 $14) 15... Bh4 $11 {[%emt 0:00:01]} 16. Bc4 {[%emt 0:00:34] [#]} Ne5 $146 {[%emt 0:00:26]} ({Predecessor:} 16... Kh8 17. Bf4 b5 18. Bb3 Nc5 19. g3 Nxb3 20. axb3 Bf6 21. Nxf6 exf6 22. Rxd6 Rxd6 23. Bxd6 {0-1 (63) Suarez Gomez,J (2449)-Rostovtsev,D (2163) Chess.com INT 2021}) 17. Nxe7+ {[%emt 0:00:39]} ({Better is} 17. Rd4 $14 Bf2 18. Rf4) 17... Kg7 {[%emt 0:01:16]} 18. Nxc8 {[%emt 0:00:02]} (18. Nd5 $1 $11) 18... Nxc4 $17 {[%emt 0:00:02]} 19. Rd4 {[%emt 0:00:02][%csl LRc4,LRh4] [#]} Bf6 $1 {[%emt 0:00:02]} 20. Rxc4 {[%emt 0:00:02]} Raxc8 {[%emt 0:00:01]} 21. Rxc8 {[%emt 0:00:05]} Rxc8 $15 {[%emt 0:00:01][%mdl 4096] Endgame KRB-KRB} 22. c3 {[%emt 0:00:02][%cal Bc2c3,Bc3d4][%mdl 32]} d5 {[%emt 0:00:01]} 23. Be3 {[%emt 0:00:20] Inhibits d4.} d4 {[%emt 0:00:03]} 24. Bxd4 {[%emt 0:00:09]} Bxd4 {[%emt 0:00:01]} 25. cxd4 $11 {[%emt 0:00:02] KR-KR} Rc2 {[%emt 0:00:01]} 26. b3 {[%emt 0:00:06]} Kf6 {[%emt 0:00:21]} 27. h3 {[%emt 0:00:07]} b5 {[%emt 0:00:21]} 28. b4 {[%emt 0:00:56]} Rc4 {[%emt 0:00:28]} 29. a3 {[%emt 0:00:15]} Rxd4 {[%emt 0:00:04]} 30. Rc1 {[%emt 0:00:01]} Rc4 {[%emt 0:00:06] Against Rc6+} 31. Rd1 {[%emt 0:00:02]} Ke5 {[%emt 0:00:06] Prevents Rd6. Threatens to win with ...Rc3.} 32. Rd3 {[%emt 0:00:09] Prevents Rc3.} Rc6 {[%emt 0:00:30]} 33. Kh2 {[%emt 0:00:05]} Ke4 {[%emt 0:00:01]} 34. Rd7 {[%emt 0:00:10]} h5 {[%emt 0:00:05]} 35. h4 {[%emt 0:00:04]} Ke5 {[%emt 0:00:17] ...Rc3 is the strong threat.} 36. g3 $2 {[%emt 0:00:02][%mdl 8192]} (36. Rd3 $11 {and White stays safe.}) 36... Rc3 $19 {[%emt 0:00:08]} 37. Re7+ {[%emt 0:00:04]} Kf6 {[%emt 0:00:04]} 38. Rb7 {[%emt 0:00:01]} (38. Ra7 Rxa3 39. Rb7) 38... Rxa3 {[%emt 0:00:02]} 39. Rb6+ {[%emt 0:00:01]} Kf5 {[%emt 0:00:01]} 40. Kh3 {[%emt 0:00:01]} Ra4 {[%emt 0:00:06]} 41. Kg2 {[%emt 0:00:02]} Rxb4 {[%emt 0:00:02]} 42. Rxa6 {[%emt 0:00:01]} Rb3 $2 {[%emt 0:00:03]} ({Black should play} 42... Re4 $19 43. Ra5 Re5) 43. Kf2 {[%emt 0:00:01]} (43. Rb6 $15) 43... b4 {[%emt 0:00:02][%cal Bb5b4,Bb4b3,Bb3b2][%mdl 32]} 44. Rb6 {[%emt 0:00:02] [#]} Ke4 $2 {[%emt 0:00:08]} (44... Rb1 $1 $19 {White must now prevent ...Kg4.} 45. Ke3 b3) 45. Rxg6 {[%emt 0:00:01]} (45. Re6+ $1 $11 Kd3 46. Rxg6) 45... Rb2+ $1 $15 {[%emt 0:00:03]} 46. Kg1 $2 {[%emt 0:00:03][%mdl 8192]} (46. Ke1 $17) 46... Kf3 {[%emt 0:00:03]} (46... b3 $142 47. Rb6 Kf3) 47. Kh1 {[%emt 0:00:03]} b3 {[%emt 0:00:02] Black mates.} 48. Rg5 {[%emt 0:00:01]} Rc2 {[%emt 0:00:02]} 49. Rf5+ {[%emt 0:00:02]} Kg4 {[%emt 0:00:02]} 50. Rb5 {[%emt 0:00:02]} b2 {[%emt 0:00:02] Weighted Error Value: White=0.66/Black=0.35} 0-1

[Event "Superbet Blitz Poland 2022"]
[Site "Warsaw"]
[Date "2022.05.22"]
[Round "1.2"]
[White "Shevchenko, Kirill"]
[Black "Korobov, Anton"]
[Result "1-0"]
[ECO "B48"]
[WhiteElo "2644"]
[BlackElo "2671"]
[Annotator "TA"]
[PlyCount "107"]
[EventDate "2022.05.22"]
[EventType "tourn"]
[EventCountry "POL"]
[SourceTitle "playchess.com"]
[Source "ChessBase"]
[SourceQuality "1"]
[TimeControl "300+2"]

{[%evp 11,107,28,31,31,39,27,31,-41,-39,-104,28,34,39,0,0,-14,-22,-20,-19,-31,-29,-96,-26,-27,-19,-25,-40,-34,-34,-27,0,-64,0,-65,-51,-98,0,0,0,9,25,0,39,39,41,19,28,24,52,0,8,16,32,21,16,29,69,44,47,45,47,43,35,39,46,35,41,36,74,61,87,8,0,0,0,-8,0,0,0,0,0,0,0,0,0,0,0,0,0,0,0,0,29979,29980,29980,29981,29979,29980]} 1. e4 {[%emt 0:00:01]} c5 {[%emt 0:00:01]} 2. Nc3 {[%emt 0:00:01]} Nc6 {[%emt 0:00:01]} 3. Nf3 {[%emt 0:00:04]} e6 {[%emt 0:00:01]} 4. d4 {[%emt 0:00:07]} cxd4 {[%emt 0:00:02]} 5. Nxd4 {[%emt 0:00:01]} Qc7 {[%emt 0:00:01]} 6. Be3 {[%emt 0:00:13]} a6 {[%emt 0:00:02]} 7. Qf3 {[%emt 0:00:04] B48: Sicilian: Taimanov: 5 Nc3 Qc7 6 Be3 a6 without Be2.} b5 {[%emt 0:00:13]} 8. Nxc6 {[%emt 0:00:29] 8.Qg3 deserves study.} Qxc6 {[%emt 0:00:01]} 9. O-O-O $5 {[%emt 0:00:28][%mdl 4] An interesting side line.} (9. a3 $14) 9... Bb7 {[%emt 0:00:02]} 10. Qg3 {[%emt 0:01:01]} (10. Bd3 $15) 10... Rc8 {[%emt 0:00:22]} ({Better is} 10... b4 $17 11. Ne2 Rc8) 11. Bd3 $11 {[%emt 0:00:23]} Nf6 {[%emt 0:00:45] Hoping for ...b4.} 12. e5 {[%emt 0:01:08]} (12. f3 $5 {[%cal Re4e5]}) 12... Nd5 {[%emt 0:00:13]} 13. Be4 {[%emt 0:00:09] [#]} Qc7 $146 {[%emt 0:01:03]} ({Predecessor:} 13... Qc4 14. Bxd5 Bxd5 15. Rd4 Qc6 16. Rd2 Bxg2 17. Rhd1 Bf3 18. Rd6 Qa8 19. R1d4 Bxd6 20. Qxg7 Bxe5 21. Qxe5 {1-0 (28) Gormally,D (2493)-Ramsdal,J (2190) Hastings 2016}) 14. Bxd5 {[%emt 0:00:41]} Bxd5 15. Rd2 Qa5 {[%emt 0:00:19]} 16. Bd4 {[%emt 0:00:32]} (16. Nxd5 $11 Qxa2 17. c3 exd5 18. Kd1) 16... Bc6 {[%emt 0:00:06]} (16... Bxa2 $17 {White must now prevent ...Bd5.} 17. Bb6 Qxb6 18. Nxa2 Qa5) 17. Kb1 {[%emt 0:00:04]} b4 {[%emt 0:00:04][%cal Bb5b4,Bb4b3,Bb3a2][%mdl 32]} 18. Nd1 {[%emt 0:00:04]} b3 {[%emt 0:00:04]} 19. Nc3 {[%emt 0:00:03]} bxa2+ {[%emt 0:00:16]} 20. Ka1 {[%emt 0:00:00]} g6 {[%emt 0:00:01]} 21. Qe3 {[%emt 0:00:04]} (21. Rhd1 $11) 21... Rb8 {[%emt 0:00:19]} (21... Bxg2 $15 22. Rhd1 Bc6) 22. h4 {[%emt 0:00:03]} (22. f3 $11) 22... h5 {[%emt 0:00:04]} 23. Rhd1 {[%emt 0:00:03]} (23. f3 $15 {might be stronger.}) 23... Be7 {[%emt 0:00:09]} (23... Bxg2 $17 24. f3 Bh6) 24. Ne4 {[%emt 0:00:01]} Bxe4 {[%emt 0:00:29]} (24... Bxh4 $2 25. Nd6+ Kf8 26. Qf4 $18) 25. Qxe4 {[%emt 0:00:01]} Qb5 {[%emt 0:00:06]} 26. Bc3 {[%emt 0:00:02]} Qc6 {[%emt 0:00:05]} 27. Qxc6 {[%emt 0:00:02]} dxc6 {[%emt 0:00:01]} 28. Rd4 {[%emt 0:00:04]} Bc5 {[%emt 0:00:08]} 29. Rf4 {[%emt 0:00:02][%mdl 1024] White has compensation.} Ke7 {[%emt 0:00:03]} 30. b4 {[%emt 0:00:01]} (30. Rd3 $14) 30... Bb6 {[%emt 0:00:12]} 31. Rd3 {[%emt 0:00:01]} Rbd8 {[%emt 0:00:13]} 32. Rdf3 {[%emt 0:00:01]} Rhf8 {[%emt 0:00:01]} 33. Rc4 {[%emt 0:00:01]} Kd7 {[%emt 0:00:11]} 34. Kxa2 {[%emt 0:00:02]} (34. Bd2 {feels hotter.} Kc7 35. Bh6 Rh8 36. Rxf7+ Rd7 37. Rxd7+ Kxd7 38. Bg5) 34... Kc7 {[%emt 0:00:01]} 35. Rcf4 $36 {[%emt 0:00:03][%mdl 2048] White fights for an advantage.} Rd7 {[%emt 0:00:01]} 36. Rf6 {[%emt 0:00:01]} c5 $1 {[%emt 0:00:09]} 37. Kb3 {[%emt 0:00:04][%cal Of6e6]} Kc6 {[%emt 0:00:06] [#]} 38. Rxe6+ $1 {[%emt 0:00:02]} fxe6 {[%emt 0:00:02]} 39. Rxf8 {[%emt 0:00:00]} cxb4 {[%emt 0:00:01]} 40. Bxb4 $14 {[%emt 0:00:02][%mdl 4096] Endgame And now Rf6 would win. KRB-KRB} Rd4 {[%emt 0:00:03][%cal Od4b4] [#] aiming for ...Rxb4+!} 41. Rf6 {[%emt 0:00:02]} ({White should try} 41. Re8 $1 $16 {[%cal Re8e6]}) 41... Kd5 $11 {[%emt 0:00:04]} 42. g3 {[%emt 0:00:04]} Re4 {[%emt 0:00:01]} 43. Rxg6 {[%emt 0:00:03]} Bxf2 {[%emt 0:00:02]} 44. Rg5 {[%emt 0:00:02]} Rxe5 {[%emt 0:00:06]} 45. c4+ {[%emt 0:00:01]} Ke4 {[%emt 0:00:01]} 46. Rg6 {[%emt 0:00:04]} Kf3 {[%emt 0:00:04]} 47. Bd6 {[%emt 0:00:03]} Re3+ {[%emt 0:00:06]} 48. Ka4 {[%emt 0:00:01]} e5 {[%emt 0:00:01]} 49. Rf6+ {[%emt 0:00:02]} Kg2 {[%emt 0:00:01]} 50. Rxf2+ {[%emt 0:00:02]} Kxf2 {[%emt 0:00:02]} 51. Bc5 {[%emt 0:00:01]} Kf3 {[%emt 0:00:03][%mdl 8192]} (51... e4 $11) 52. Bxe3 {[%emt 0:00:01] White mates.} Kxe3 {[%emt 0:00:01]} 53. c5 {[%emt 0:00:01][%cal Bc4c5,Bc5c6][%mdl 32]} e4 {[%emt 0:00:01]} 54. c6 {[%emt 0:00:00] Weighted Error Value: White=0.21 (precise) /Black=0.30} 1-0

[Event "Superbet Blitz Poland 2022"]
[Site "Warsaw"]
[Date "2022.05.22"]
[Round "1.3"]
[White "Anand, Viswanathan"]
[Black "Duda, Jan-Krzysztof"]
[Result "1-0"]
[ECO "C48"]
[WhiteElo "2751"]
[BlackElo "2750"]
[Annotator "TA"]
[PlyCount "79"]
[EventDate "2022.05.22"]
[EventType "tourn"]
[EventCountry "POL"]
[SourceTitle "playchess.com"]
[Source "ChessBase"]
[SourceQuality "1"]
[TimeControl "300+2"]

{[%evp 10,79,28,0,3,1,12,-8,-14,-15,-10,-19,-4,-12,-17,-16,-12,-16,-13,-26,9,16,22,1,16,8,14,3,0,-33,-17,-28,-26,-29,0,-20,-22,-30,-15,-49,-28,-54,-53,-46,0,0,0,0,0,0,158,0,161,164,179,188,317,324,856,856,856,854,838,838,831,789,29952,12841,29997,29998,29998,29999]} 1. e4 {[%emt 0:00:01]} e5 {[%emt 0:00:01]} 2. Nf3 {[%emt 0:00:02]} Nc6 {[%emt 0:00:02]} 3. Bb5 {[%emt 0:00:02]} Nf6 {[%emt 0:00:02]} 4. d3 {[%emt 0:00:02]} Bc5 {[%emt 0:00:01]} 5. Bxc6 {[%emt 0:00:03]} dxc6 {[%emt 0:00:02]} 6. Nc3 {[%emt 0:00:05]} Qe7 {[%emt 0:00:19] C48: Four Knights: 4 Bb5, replies other than 4...Bb4.} 7. h3 {[%emt 0:00:06]} a5 {[%emt 0:00:03]} 8. Be3 {[%emt 0:00:05] [#]} Bxe3 $146 {[%emt 0:00:48] The position is equal.} ({Predecessor:} 8... b6 9. Bxc5 Qxc5 10. Qd2 h6 11. g4 Nd7 12. a3 Qe7 13. Ne2 Bb7 14. Ng3 c5 {1-0 (41) Indjic,A (2613)-Santos Ruiz,M (2597) Chess.com INT 2022}) 9. fxe3 {[%emt 0:00:02]} a4 {[%emt 0:00:03]} 10. a3 {[%emt 0:00:03]} O-O {[%emt 0:00:03]} 11. O-O {[%emt 0:00:12]} Ne8 {[%emt 0:00:09]} 12. Qe1 {[%emt 0:00:25]} Nd6 {[%emt 0:00:03]} 13. g4 {[%emt 0:00:02]} f6 {[%emt 0:00:15]} 14. Qg3 {[%emt 0:00:04]} g5 {[%emt 0:01:14]} 15. Rf2 {[%emt 0:00:56]} Be6 {[%emt 0:00:10]} 16. Raf1 {[%emt 0:00:07]} (16. h4 {is interesting.} h6 17. Rh2 Kg7 18. hxg5 hxg5 19. Kg2) 16... b5 {[%emt 0:00:14]} 17. Ne2 {[%emt 0:00:34]} Rf7 {[%emt 0:00:13]} 18. h4 {[%emt 0:00:11] hxg5 is the strong threat.} h6 {[%emt 0:00:07]} 19. Nh2 {[%emt 0:00:16]} c5 {[%emt 0:00:05][%cal Bc6c5,Bc5c4][%mdl 32]} 20. Qh3 {[%emt 0:00:01]} Raf8 {[%emt 0:00:09]} 21. Ng3 {[%emt 0:00:02]} c4 {[%emt 0:00:36]} 22. Nf5 {[%emt 0:00:03]} Bxf5 {[%emt 0:00:09]} 23. gxf5 {[%emt 0:00:02]} Rh7 {[%emt 0:00:02]} 24. Rg2 {[%emt 0:00:49]} c5 {[%emt 0:00:05]} 25. Qf3 {[%emt 0:00:16]} cxd3 {[%emt 0:00:05]} 26. cxd3 {[%emt 0:00:02]} c4 {[%emt 0:00:02]} (26... Kh8 $15 {might be stronger.}) 27. Rd1 $11 {[%emt 0:00:01]} Qb7 {[%emt 0:00:21]} 28. dxc4 {[%emt 0:00:06]} Nxc4 {[%emt 0:00:12]} 29. Ng4 {[%emt 0:00:01]} Qb6 $2 {[%emt 0:00:10] [#]} (29... Qc6 $11) 30. Rd5 $2 {[%emt 0:00:28]} (30. hxg5 $1 $16 hxg5 31. Rh2 Rxh2 32. Kxh2) 30... Kh8 $2 {[%emt 0:00:02]} (30... Qc6 $11 {and Black has nothing to worry.}) 31. hxg5 $18 {[%emt 0:00:07]} hxg5 {[%emt 0:00:06]} 32. Rh2 {[%emt 0:00:03] Rd7 would kill now.} Rxh2 {[%emt 0:00:06]} (32... Qc7 {was worth a try.} 33. Qe2 (33. Rxb5 Rxh2 34. Nxh2 Nd2 $11) 33... Rh4) 33. Kxh2 {[%emt 0:00:01] Intending Qh3+ and mate.} Qb7 $2 {[%emt 0:00:04] [#]} (33... Qc7 34. Qh3+ (34. Rxb5 Kg7 $11) 34... Qh7 35. Rxb5 Rf7) 34. Nxf6 $1 {[%emt 0:00:15][%mdl 512]} Rxf6 {[%emt 0:00:03]} 35. Qh5+ {[%emt 0:00:01]} Kg7 {[%emt 0:00:02]} 36. Qxg5+ {[%emt 0:00:03]} Kf7 {[%emt 0:00:01]} 37. Rd8 {[%emt 0:00:09] White threatens Qg8+ and mate.} Nd6 {[%emt 0:00:02]} 38. Rh8 {[%emt 0:00:06] Threatening mate with Qg8+.} Qxe4 {[%emt 0:00:04]} 39. Qg8+ {[%emt 0:00:03]} Ke7 {[%emt 0:00:00]} 40. Qd8+ {[%emt 0:00:02] Weighted Error Value: White=0.13 (very precise) /Black=0.77} 1-0

[Event "Superbet Blitz Poland 2022"]
[Site "Warsaw"]
[Date "2022.05.22"]
[Round "1.4"]
[White "So, Wesley"]
[Black "Wojtaszek, Radoslaw"]
[Result "0-1"]
[ECO "E53"]
[WhiteElo "2766"]
[BlackElo "2696"]
[Annotator "TA"]
[PlyCount "78"]
[EventDate "2022.05.22"]
[EventType "tourn"]
[EventCountry "POL"]
[SourceTitle "playchess.com"]
[Source "ChessBase"]
[SourceQuality "1"]
[TimeControl "300+2"]

{[%evp 18,78,0,0,0,-9,4,14,8,7,14,0,14,18,0,2,15,0,15,0,6,0,31,0,0,0,0,0,0,-56,-52,-41,-46,-54,-4,-17,-13,-12,-14,-14,0,0,0,0,0,0,0,0,0,0,3,-19,-19,-13,-13,-40,-39,-34,-32,-39,-34,-993,-953]} 1. d4 {[%emt 0:00:01]} Nf6 {[%emt 0:00:01]} 2. c4 {[%emt 0:00:00]} e6 {[%emt 0:00:01]} 3. Nc3 {[%emt 0:00:01]} Bb4 {[%emt 0:00:00]} 4. e3 {[%emt 0:00:01]} O-O {[%emt 0:00:03]} 5. Bd3 {[%emt 0:00:01]} d5 {[%emt 0:00:02]} 6. a3 {[%emt 0:00:01]} Bxc3+ {[%emt 0:00:03]} 7. bxc3 {[%emt 0:00:01]} dxc4 {[%emt 0:00:01]} 8. Bxc4 {[%emt 0:00:01]} c5 {[%emt 0:00:02]} 9. Nf3 {[%emt 0:00:01]} Qc7 {[%emt 0:00:02]} 10. Be2 {[%emt 0:00:01]} b6 {[%emt 0:00:01] E53: Nimzo-Indian: Rubinstein: Main Line (4...0-0 5 Nf3 d5 6 Bd3 c5 7 0-0).} 11. Bb2 {[%emt 0:00:01] is recently more successful than 11.0-0.} Ba6 $5 {[%emt 0:00:14][%mdl 4] A promising side line.} 12. c4 {[%emt 0:00:06]} cxd4 {[%emt 0:00:11] The position is equal.} 13. Nxd4 {[%emt 0:00:01]} Nbd7 {[%emt 0:00:02] [#]} 14. Nb5 $146 {[%emt 0:00:18]} ({Predecessor:} 14. O-O Rac8 15. Nb5 Qb8 16. a4 Rfd8 17. Qd6 Bxb5 18. Qxb8 Nxb8 19. axb5 Rd2 20. Bxf6 gxf6 {0-1 (67) Ding,L (2774)-Carlsen,M (2837) Saint Louis 2017}) 14... Qc5 {[%emt 0:00:16]} 15. O-O {[%emt 0:00:11]} Bb7 {[%emt 0:00:04]} 16. Qd4 {[%emt 0:00:17]} Qg5 {[%emt 0:00:09][%csl Gb7][%cal Rg5g2] [#]} 17. g3 {[%emt 0:00:05]} a6 {[%emt 0:00:15]} 18. Nd6 {[%emt 0:00:02]} Bc6 $1 {[%emt 0:00:01]} 19. Rad1 {[%emt 0:00:06]} Rad8 {[%emt 0:00:02]} 20. Qf4 {[%emt 0:00:06]} Qg6 {[%emt 0:00:16]} 21. Rd2 {[%emt 0:00:26]} Nc5 {[%emt 0:00:02]} 22. Rfd1 {[%emt 0:00:00][%cal Od6f5]} Ba4 {[%emt 0:00:03]} 23. Nf5 {[%emt 0:00:15]} Rde8 $15 {[%emt 0:00:15]} 24. Nh4 {[%emt 0:00:22]} Qe4 {[%emt 0:00:02] [#] Strongly threatening ...Qxf4.} 25. Re1 {[%emt 0:00:14]} Qxf4 {[%emt 0:00:15]} (25... e5 $1 $15 26. Qf3 Re6) 26. gxf4 {[%emt 0:00:05]} Nfe4 {[%emt 0:00:03]} 27. Rd4 {[%emt 0:00:04]} Rd8 {[%emt 0:00:09]} 28. Nf3 {[%emt 0:00:01]} Nd6 {[%emt 0:00:18]} 29. Bc3 {[%emt 0:00:09]} Nb3 {[%emt 0:00:18]} 30. Rd3 {[%emt 0:00:08]} Nc5 {[%emt 0:00:05]} 31. Rd4 {[%emt 0:00:01]} Nb3 {[%emt 0:00:07]} 32. Rdd1 {[%emt 0:00:02]} Ne4 {[%emt 0:00:06]} 33. Bb4 {[%emt 0:00:21] A strong pair of Bishops.} Nbc5 {[%emt 0:00:03]} 34. Rxd8 {[%emt 0:00:15]} Rxd8 {[%emt 0:00:01]} 35. Rb1 {[%emt 0:00:08]} Bc2 {[%emt 0:00:02]} 36. Rb2 {[%emt 0:00:01]} Bd3 {[%emt 0:00:08]} 37. Kf1 {[%emt 0:00:14]} Bxe2+ {[%emt 0:00:07]} 38. Kxe2 {[%emt 0:00:02]} Nd3 {[%emt 0:00:13]} 39. Rb3 {[%emt 0:00:01][%mdl 8192]} (39. Rb1 $15) 39... Nc1+ {[%emt 0:00:02] Weighted Error Value: White=0.34/Black=0.05 (flawless)} 0-1

[Event "Superbet Blitz Poland 2022"]
[Site "Warsaw"]
[Date "2022.05.22"]
[Round "1.5"]
[White "Caruana, Fabiano"]
[Black "Rapport, Richard"]
[Result "1-0"]
[ECO "E73"]
[WhiteElo "2786"]
[BlackElo "2776"]
[Annotator "TA"]
[PlyCount "95"]
[EventDate "2022.05.22"]
[EventType "tourn"]
[EventCountry "POL"]
[SourceTitle "playchess.com"]
[Source "ChessBase"]
[SourceQuality "1"]
[TimeControl "300+2"]

{[%evp 11,95,46,58,26,40,39,44,35,45,51,54,47,69,65,69,66,69,69,69,58,66,58,70,70,67,67,77,74,74,75,77,-13,-27,-35,-34,-45,0,4,30,0,120,111,210,218,237,50,116,37,29,43,102,83,84,88,67,16,56,49,70,0,0,-14,28,21,27,27,88,107,121,102,584,584,584,584,576,349,638,568,29950,445,5916,5916,29961,5043,29978,6070]} 1. d4 {[%emt 0:00:02]} Nf6 {[%emt 0:00:03]} 2. c4 {[%emt 0:00:01]} g6 {[%emt 0:00:01]} 3. Nc3 {[%emt 0:00:01]} Bg7 {[%emt 0:00:01]} 4. e4 {[%emt 0:00:01]} d6 {[%emt 0:00:01]} 5. Be2 {[%emt 0:00:03]} O-O {[%emt 0:00:03]} 6. Be3 {[%emt 0:00:01]} c6 {[%emt 0:00:02]} 7. h4 {[%emt 0:00:13] E73: King's Indian: Averbakh Variation without 6...c5.} h5 {[%emt 0:00:02]} 8. f3 {[%emt 0:00:18]} a6 {[%emt 0:00:11]} 9. a4 {[%emt 0:00:25] White is slightly better.} a5 {[%emt 0:00:15] [#]} 10. Nh3 $146 {[%emt 0:00:02]} ({Predecessor:} 10. Qd2 Na6 11. Nh3 Nb4 12. Nf2 e5 13. O-O-O exd4 14. Bxd4 d5 15. cxd5 cxd5 16. exd5 {0-1 (47) Papayan,O (2246)-Starozhilov,L (2318) Chess.com INT 2019}) 10... Bxh3 {[%emt 0:00:02]} 11. Rxh3 {[%emt 0:00:02]} Nbd7 {[%emt 0:00:04]} 12. g4 {[%emt 0:00:11]} e5 {[%emt 0:00:07]} 13. d5 {[%emt 0:00:24]} Nc5 {[%emt 0:00:09]} 14. Bxc5 {[%emt 0:00:48]} dxc5 {[%emt 0:00:08]} 15. Qd2 {[%emt 0:00:07]} Kh7 {[%emt 0:00:29]} 16. Kd1 {[%emt 0:00:16]} Qc8 {[%emt 0:00:10][%cal Rh5g4]} 17. Rg3 {[%emt 0:00:03]} Rh8 {[%emt 0:00:06]} 18. Kc2 {[%emt 0:00:03]} Kg8 {[%emt 0:00:10]} 19. Rh1 {[%emt 0:00:03]} Qc7 {[%emt 0:00:05]} 20. Rg2 {[%emt 0:00:19]} Rd8 {[%emt 0:00:06]} 21. Nd1 {[%emt 0:00:18]} (21. Kb1 $16) 21... hxg4 $11 {[%emt 0:00:08]} 22. Nc3 {[%emt 0:00:04]} Bh6 {[%emt 0:00:14]} 23. Qd1 {[%emt 0:00:06]} gxf3 {[%emt 0:00:03]} (23... g3 $1 $15 24. Rxg3 Be3) 24. Bxf3 {[%emt 0:00:01]} Bf4 {[%emt 0:00:02]} 25. h5 {[%emt 0:00:04]} Kg7 {[%emt 0:00:07]} (25... cxd5 $2 26. hxg6 Rh6 27. Rxh6 (27. exd5 Rxg6 28. Rxg6+ fxg6 $16) 27... Bxh6 28. exd5 $18 (28. Nxd5 Nxd5 29. cxd5 f6 $18)) (25... g5 $1 $11 {remains equal.}) 26. Qg1 {[%emt 0:00:08][%csl LRc5,LRg6][%cal Rg2g6] aiming for Rxg6+!} Rh6 {[%emt 0:00:12]} (26... Rdg8 $16) 27. hxg6 $18 {[%emt 0:00:29]} Rxg6 {[%emt 0:00:02]} 28. Qxc5 $2 {[%emt 0:00:08]} (28. Ne2 $1 $18 {[%cal Re2f4]}) 28... b6 {[%emt 0:00:36]} ({Black should play} 28... Rc8 $14) 29. Qf2 {[%emt 0:00:10]} (29. Rxg6+ $16 fxg6 30. Nb5 $1 {[%mdl 512]} (30. Qxc6 Qxc6 31. dxc6 Rc8 $11)) 29... cxd5 $14 {[%emt 0:00:07]} 30. cxd5 {[%emt 0:00:01]} Qc4 {[%emt 0:00:26]} (30... Rh8 $14) 31. Rxg6+ {[%emt 0:00:06]} fxg6 {[%emt 0:00:02]} 32. Qxb6 {[%emt 0:00:02]} Rc8 {[%emt 0:00:06][%csl LRa4,LRe4]} 33. d6 {[%emt 0:00:18]} (33. Qxa5 $14 Nxe4 34. Qb5 Qxb5 35. axb5) 33... Qxa4+ {[%emt 0:00:16]} 34. Kb1 {[%emt 0:00:03] Really sharp!} Qd7 {[%emt 0:00:10]} 35. Rd1 {[%emt 0:00:18] White is more active.} ({White should try} 35. Nd5 $1 $14 Nxd5 36. exd5 Qf5+ 37. Ka1) 35... Rc6 $1 $11 {[%emt 0:00:11]} 36. Qb8 {[%emt 0:00:05]} Rc8 {[%emt 0:00:06]} (36... Be3 $5 {[%cal Re3d4]}) 37. Qb3 {[%emt 0:00:07]} Be3 {[%emt 0:00:16]} 38. Be2 $36 {[%emt 0:00:09][%mdl 2048] White has some pressure.} Bd4 {[%emt 0:00:02] [#]} (38... a4 $1 $11 39. Qb5 (39. Nxa4 Bd4 $11) 39... Qxb5 40. Bxb5 Rd8) 39. Nb5 $1 $16 {[%emt 0:00:01]} Rb8 {[%emt 0:00:02][%cal Od7d6]} 40. Qc4 {[%emt 0:00:06]} Nxe4 $2 {[%emt 0:00:26][%mdl 8192] Black cannot hold the game after this.} (40... Rxb5 $16 {is more resistant.} 41. Qxb5 Qxd6 42. Qxa5 Nxe4) 41. Nxd4 $18 {[%emt 0:00:01]} exd4 {[%emt 0:00:03]} 42. Qxd4+ {[%emt 0:00:01]} Nf6 {[%emt 0:00:02]} 43. Bd3 {[%emt 0:00:03] And now Rg1 would win.} Rb4 $2 {[%emt 0:00:19]} (43... Rd8 44. Bc2 Qe6) 44. Qe5 {[%emt 0:00:02]} Rg4 {[%emt 0:00:13]} 45. Bb5 {[%emt 0:00:05]} (45. Rf1 $142 Qd8 46. d7 Kh6 47. Bb5 Rg5 48. Qxf6 Qxf6 49. Rxf6 Rd5 50. Rf8) 45... Qd8 {[%emt 0:00:03]} (45... Qf5+ $142 46. Qxf5 gxf5) 46. d7 {[%emt 0:00:03] Threatening mate with Qc3.} Re4 {[%emt 0:00:01]} 47. Qc5 {[%emt 0:00:02] White wants to mate with Qc8.} Rb4 {[%emt 0:00:03]} 48. Qc8 {[%emt 0:00:03] Weighted Error Value: White=0.44/Black=0.92} 1-0